Cogmind - Beta 17.1 @@@ ROGUE MODE // 2026.09.06 @ 16:34:51 Player: Grose Result: Destroyed by EJ-9IL(R) with Subdweller Laser Performance ------------- Evolutions (0) 0 Regions Visited (2) 400 Robots Destroyed (31) 155 Value Destroyed (659) 659 Prototype IDs (14) 280 Alien Tech Used (0) 0 Bonus (0) 0 TOTAL SCORE: 1494 Bonus ------- None Cogmind --------- Core Integrity 0/250 Matter 195/300 Energy 100/100 System Corruption 4% Temperature Cool (6) Movement Rolling (115) Ox1 Location -10/Subcaves Parts ------- > --- POWER (1) -------- (None) > --- PROPULSION (2) --- Compact Wheel > --- UTILITY (2) ------ Large Storage Unit Makeshift Light Armor Plating > --- WEAPON (2) ------- Light Assault Rifle Makeshift Shrapnel Gun > --- INVENTORY (15) --- Aluminum Leg Aluminum Leg Arachnoskeleton Subdweller Monowheel Structural Scanner Sensor Array Signal Interpreter Particle Cannon Particle Cannon Light Assault Rifle Mining Laser Plasma Cutter Mining Claw Peak State ------------ > --- POWER ------------ Subdweller Power Source > --- PROPULSION ------- Compact Wheel > --- UTILITY ---------- Large Storage Unit Makeshift Light Armor Plating > --- WEAPON ----------- Makeshift Shrapnel Gun Mining Claw > --- INVENTORY -------- Aluminum Leg Aluminum Leg Arachnoskeleton Subdweller Monowheel Structural Scanner Sensor Array Signal Interpreter Particle Cannon Particle Cannon Light Assault Rifle Light Assault Rifle Mining Laser Plasma Cutter [Rating: 16] Favorites ----------- Power Light Nuclear Core Engine Ion Engine Power Core Light Nuclear Core Propulsion Light Treads Treads Light Treads Wheel Wheel Utility Large Storage Unit Device Seismic Detector Storage Large Storage Unit Protection Makeshift Light Armor Plating Weapon Small Laser Energy Gun Small Laser Energy Cannon Particle Cannon Ballistic Gun Light Assault Rifle Ballistic Cannon Light Cannon Launcher Grenade Launcher Slashing Weapon Mining Claw Build | -11 -10 -10 ------- Run | Yrd Mat Sub Slots Evolved . | . . . Power . | . . . Propulsion . | . . . Utility . | . . . Weapon . | . . . Parts Attached 28 | 7 9 12 Power 5 | 1 2 2 Engine 4 | 1 1 2 Core 1 | . 1 . Reactor . | . . . Propulsion 5 | 2 . 3 Treads 2 | 2 . . Leg . | . . . Wheel 3 | . . 3 Hover . | . . . Flight . | . . . Utility 6 | 2 3 1 Device 3 | 1 2 . Storage 2 | 1 1 . Processor . | . . . Hackware . | . . . Protection 1 | . . 1 Artifact . | . . . Weapon 12 | 2 4 6 Energy Gun 3 | 2 . 1 Energy Cannon 3 | . 1 2 Ballistic Gun 3 | . 2 1 Ballistic Cannon 1 | . 1 . Launcher 1 | . . 1 Special Weapon . | . . . Impact Weapon . | . . . Slashing Weapon 1 | . . 1 Piercing Weapon . | . . . Special Melee Weapon . | . . . Unidentified Prototypes . | . . . Parts Lost 12 | . 2 10 Power 3 | . . 3 Propulsion 3 | . . 3 Utility 2 | . 1 1 Weapon 4 | . 1 3 Highest Loss Streak 2 | . 1 2 To Critical Strikes . | . . . Average Backups 12 | 5 13 13 Power . | . 1 . Propulsion 3 | 3 4 3 Utility 3 | . 3 3 Weapon 4 | . 4 5 Tool/Special . | . . . Unused Backups 16 | . 7 9 Power 2 | . 2 . Propulsion 4 | . . 4 Utility 5 | . 3 2 Weapon 4 | . 2 2 Tool/Special 1 | . . 1 Average Slot Usage (%) 96 | . 98 91 Engine 8 | . 5 11 Core 5 | . 8 1 Treads 18 | . 28 2 Wheel 7 | . . 20 Device 11 | . 13 8 Storage 14 | . 14 14 Protection 1 | . . 5 Energy Gun 4 | . 5 2 Energy Cannon 6 | . 4 9 Ballistic Gun 10 | . 10 10 Ballistic Cannon 4 | . 6 . Peak Build Rating 16 | 8 11 16 Average Rating 10 | 5 9 12 On Entrance 6 | . 8 11 Avg Prop Armor Cover (%) . | . . . Naked Turns . | . . . Heaviest Build 40 | 13 32 40 Greatest Support 40 | 40 40 40 Greatest Overweight (x) 3 | . . 3 Average Overweight (x) . | . . 1 Largest Inventory Capacity 15 | 8 15 15 Average Capacity 14 | 7 14 15 Most Carried 15 | 8 15 15 Average Carried 13 | 5 13 14 Final Capacity 15 | 8 15 15 Final Carried 15 | 8 15 15 Class Distribution -------------------- 100% | Mutant Dominant Class ---------------- Mutant | -10/Materials Mutant | -10/Subcaves Resources | -11 -10 -10 ----------- Run | Yrd Mat Sub Matter Collected 867 | 270 376 221 Remotely . | . . . Salvage Created 894 | 141 579 174 Parts 56 | 11 39 6 Haulers Intercepted 2 | . 2 . Recyclers Shooed 1 | . 1 . Parts Field Recycled . | . . . Retrieved Matter . | . . . Parts Self-Destructed 8 | . . 8 Prevented . | . . . Parts Restored . | . . . Kills | -11 -10 -10 ------- Run | Yrd Mat Sub Combat Hostiles Destroyed 19 | . 13 6 Guns 8 | . 7 1 Cannons 7 | . 6 1 AOE 3 | . . 3 Classes Destroyed 8 | 2 5 1 Worker 2 | . 2 . Tunneler 4 | 4 . . Hauler 2 | . 2 . Recycler 2 | 1 1 . Watcher 2 | . 2 . Swarmer 6 | . 6 . Grunt 8 | . 7 1 Subdweller 5 | . . 5 Best Kill Streak 3 | 2 3 3 Combat Bots Only 3 | . 3 3 Max Kills in Single Turn 2 | 1 2 2 Gunslinging . | . . . Exploded 2 | . . 2 Melee . | . . . Uniques/NPCs Destroyed . | . . . Combat | -11 -10 -10 -------- Run | Yrd Mat Sub Hostile Shots Fired 137 | . 74 63 Missed 37 | . 18 19 Hits 100 | . 56 44 Projectile 100 | . 56 44 Critical Strikes 1 | . . 1 Damage Taken 1566 | . 588 978 Core 254 | . 71 183 Absorbed by Shields . | . . . Core Remaining (%) 100 | 100 . . Volleys Fired 124 | 22 67 35 Largest 2 | 2 2 2 Hottest 148 | 80 88 148 Shots Fired 235 | 44 125 66 Gun 163 | 44 84 35 Cannon 66 | . 41 25 Launcher 6 | . . 6 Special . | . . . Kinetic 111 | . 78 33 Thermal 118 | 44 47 27 Explosive 6 | . . 6 Electromagnetic . | . . . Robot Hit Streak 13 | 6 12 13 Robot Miss Streak 8 | 8 4 3 Penetration Max . | . . . Secondary Targets 1 | . 1 . Max Gunslinging Chain 1 | . 1 . Shots Hit Robots 140 | 25 71 44 Core Hits 50 | 6 31 13 Critical Kills 2 | . 1 1 Critical Parts Destroyed . | . . . Critical Strikes 4 | . 3 1 Meltdown 1 | . . 1 Destroy 1 | . 1 . Blast 2 | . 2 . Melee Attacks 9 | . . 9 Impact . | . . . Slashing 9 | . . 9 Piercing . | . . . Sneak Attacks . | . . . Combat Hostiles . | . . . Follow-up Attacks . | . . . Damage Inflicted 2528 | 294 976 1258 Guns 1258 | 294 587 377 Cannons 737 | . 389 348 Explosions 533 | . . 533 Melee . | . . . Ramming . | . . . Kinetic 1016 | . 639 377 Thermal 979 | 294 337 348 Explosive 533 | . . 533 Electromagnetic . | . . . Impact . | . . . Slashing . | . . . Piercing . | . . . Highest Corruption 4 | . 4 4 Average Corruption 3 | . 3 4 Corruption Purged . | . . . Corruption Blocked . | . . . Effects 46 | . 22 24 Message Errors 6 | . 2 4 Matter Fused 13 | . 7 6 Heat Flow Errors 7 | . 5 2 Energy Discharges 5 | . 3 2 Parts Rejected 2 | . . 2 Data Loss (minor) 4 | . 2 2 Data Loss (major) 3 | . 2 1 Misfires 3 | . 1 2 Alerts 3 | . . 3 Overload Shots . | . . . Overflow Damage . | . . . Projectiles . | . . . Explosions . | . . . Melee . | . . . Knockbacks 4 | . 4 . Impact . | . . . Kinetic 4 | . 4 . Secondary . | . . . Self-Inflicted Damage 14 | . . 14 Shots 1 | . . 1 Rammed . | . . . Targets Rammed . | . . . Kicked . | . . . Crushed . | . . . Highest Temperature 242 | 72 242 167 Average Temperature 52 | 31 65 23 Received Heat Transfer 480 | . 195 285 Siege Activations . | . . . Martial Activations . | . . . Shielding Activations . | . . . Robots Disrupted . | . . . Combat Hostiles . | . . . Robots Corrupted . | . . . Combat Hostiles . | . . . Parts Fried . | . . . Impact Corruptions . | . . . Robots Melted 1 | . . 1 Combat Hostiles 1 | . . 1 Parts Melted 2 | 1 . 1 Heat Transferred 1940 | 650 735 555 Parts Sabotaged . | . . . Parts Stolen . | . . . Parts Stripped . | . . . Power Chain Reactions . | . . . Alert | -11 -10 -10 ------- Run | Yrd Mat Sub Maximum Alert Level . | . . . Low Security (%) 100 | 100 100 . Level 1 . | . . . Level 2 . | . . . Level 3 . | . . . Level 4 . | . . . Level 5 . | . . . High Security . | . . . Max Security . | . . . Peak Influence 86 | 10 86 . Initial . | . . . Average 33 | 1 37 . Influence Increases 478 | 25 423 30 Destroy 0b10 Robot/C 280 | . 260 20 Destroy 0b10 Robot/NC 60 | 25 35 . Destroy Leader 78 | . 68 10 Successful Hack 15 | . 15 . Disable Machine 15 | . 15 . Lose Combat Pursuer 30 | . 30 . Influence Decreases 478 | 25 384 69 Entered New Map 19 | . . 19 Time Decay 439 | 25 364 50 Lost Part 20 | . 20 . Squads Dispatched 2 | . 2 . Investigation . | . . . Extermination . | . . . Reinforcement 2 | . 2 . Assault . | . . . Garrison . | . . . Intercept . | . . . Searches Triggered . | . . . Construction Impeded . | . . . Haulers Reinforced . | . . . Active Scanning Responses . | . . . Cargo Convoy Interrupts . | . . . Stealth | -11 -10 -10 --------- Run | Yrd Mat Sub Distress Signals 1 | . 1 . Communications Jammed . | . . . Distress Signals . | . . . Times Spotted 35 | . 21 14 Peak Tracking Total 4 | . 3 4 Tactical Retreats 5 | . 2 3 Traps | -11 -10 -10 ------- Run | Yrd Mat Sub Traps Triggered 4 | . 2 2 Indirectly . | . . . Trap Hack Attempts . | . . . Triggered . | . . . Disarmed . | . . . Reprogrammed . | . . . Reused . | . . . Traps Extracted . | . . . Installed . | . . . Triggered . | . . . Machines | -11 -10 -10 ---------- Run | Yrd Mat Sub Machines Disabled 2 | . 1 1 Max in Single Turn 1 | . 1 1 Machines Repaired . | . . . Machines Dismantled . | . . . Machines Sabotaged . | . . . Overloaded Fab Kills . | . . . Hacking | -11 -10 -10 --------- Run | Yrd Mat Sub Machines Accessed 9 | . 8 1 Terminals 6 | . 6 . Fabricators . | . . . Repair Stations . | . . . Recycling Units 2 | . 2 . Scanalyzers . | . . . Garrison Access . | . . . Total Hacks 35 | . 26 9 Successful 23 | . 14 9 Failed 12 | . 12 . Catastrophic 1 | . 1 . Database Lockouts . | . . . Manual 23 | . 23 . Terminals 19 | . 19 . Fabricators . | . . . Repair Stations . | . . . Recycling Units 7 | . 7 . Scanalyzers . | . . . Garrison Access . | . . . Terminal Hacks 10 | . 1 9 Record 8 | . . 8 Terminal Index 1 | . 1 . Proto ID Catalog 1 | . . 1 Fabricator Hacks . | . . . Repair Station Hacks . | . . . Recycling Unit Hacks 3 | . 3 . Report Inventory 2 | . 2 . Retrieve Components 1 | . 1 . Scanalyzer . | . . . Garrison Access Hacks . | . . . Unauthorized Hacks 10 | . 10 . Terminals 8 | . 8 . Botnet 4 | . 4 . Operators 1 | . 1 . Skim 3 | . 3 . Fabricators . | . . . Repair Stations . | . . . Recycling Units 2 | . 2 . Reject 1 | . 1 . Mask 1 | . 1 . Scanalyzers . | . . . Garrison Access . | . . . Data Cores Recovered . | . . . Used . | . . . Hacking Detections 6 | . 6 . Full Trace Events 1 | . 1 . Feedback Events . | . . . Feedback Blocked . | . . . Robot Schematics Acquired . | . . . Robots Built . | . . . Authchips . | . . . Time . | . . . Total Robot Build Rating . | . . . Part Schematics Acquired . | . . . Parts Built . | . . . Authchips . | . . . Time . | . . . Total Part Build Rating . | . . . Part Studies Acquired . | . . . Parts Repaired . | . . . Time . | . . . Parts Recycled . | . . . Recycled Matter . | . . . Retrieved Matter . | . . . Retrieved Components 2 | . 2 . Parts Scanalyzed . | . . . Part Schematics Acquired . | . . . Parts Damaged . | . . . Bothacking | -11 -10 -10 ------------ Run | Yrd Mat Sub Used RIF Installer . | . . . Robots Hacked . | . . . Non-combat . | . . . Combat . | . . . Robot Hacks Applied . | . . . Relay Couplers Released . | . . . Fabnet Peak Effective % . | . . . Robots Rewired . | . . . Allies Hacked . | . . . Hacks Repelled . | . . . Allies | -11 -10 -10 -------- Run | Yrd Mat Sub Total Allies . | . . . Largest Group . | . . . Highest-Rated Group . | . . . Highest-Rated Ally . | . . . Total Orders . | . . . Ally Attacks . | . . . Total Damage . | . . . Kills . | . . . Allies Corrupted . | . . . Allies Melted . | . . . Intel | -11 -10 -10 ------- Run | Yrd Mat Sub Active Infowar (turns) 2534 | 69 1802 663 Structural 102 | . 102 . Seismic 2432 | 69 1700 663 Robot Analysis Total . | . . . Derelict Logs Recovered 1 | . . 1 Drone Launches . | . . . Drone Recoveries . | . . . Exploration | -11 -10 -10 ------------- Run | Yrd Mat Sub Turns Passed 3131 | 246 1838 1047 Spaces Moved 1836 | 106 921 809 Core 7 | 7 . . Treads 1050 | 99 921 30 Legs . | . . . Wheels 779 | . . 779 Hover . | . . . Flight . | . . . Fastest Speed 50 | 50 160 95 Average Speed 136 | 152 160 108 Slowest Speed 240 | 160 160 240 Overloaded Moves . | . . . Propulsion Burnouts . | . . . Robots Hopped . | . . . Potential Cave-ins . | . . . Cave-ins Triggered . | . . . Exploration Rate (%) 49 | 6 99 42 Regions Visited 2 Branch Regions 1 Pre-discovered Areas 2 | . . 2 Known Exits Taken . | . . . Unknown Exits Taken 2 | 1 1 . Scrap Searched 1 | . . 1 Spaces Dug . | . . . Terrain Destroyed 40 | . . 40 Melee . | . . . Projectile 3 | . . 3 AOE 37 | . . 37 Terrain Rammed . | . . . Walls Destroyed . | . . . Machines Disabled . | . . . Actions | -11 -10 -10 --------- Run | Yrd Mat Sub Total 2203 | 143 1167 893 Wait 155 | . 141 14 Move 1834 | 105 920 809 Hop . | . . . Pick Up 32 | 9 18 5 Fast Attach 9 | 6 . 3 Attach 10 | 1 2 7 Detach . | . . . Swap 18 | . 8 10 Drop 12 | . 11 1 Fire 124 | 22 67 35 Melee 9 | . . 9 Ram . | . . . Kick . | . . . Crush . | . . . Escape Stasis . | . . . Rewire . | . . . Trap . | . . . Miscellaneous . | . . . Route ------- -11/Scrapyard -10/Materials (discovered 5 exits: [*Mat x3] / [*Min] / *Sub) -10/Subcaves History --------- Turn | Location | Event 14 | -11/Scrapyard | Discovered new exit (range 16) 247 | -11/Scrapyard | Entered Materials 308 | -10/Materials | Build established: Mutant 308 | -10/Materials | Discovered new exit (range 5) 626 | -10/Materials | Discovered new exit (range 16) 847 | -10/Materials | Derelicts attacked the area 914 | -10/Materials | Discovered new exit (range 16) 1044 | -10/Materials | Discovered new exit (range 8) 1594 | -10/Materials | Discovered new exit (range 9) 2085 | -10/Materials | Entered Subcaves 2086 | -10/Subcaves | Approached by a straggling Scientist 2755 | -10/Subcaves | Core integrity fell below 50% 2874 | -10/Subcaves | Visited 4L-MR0's lab 2890 | -10/Subcaves | Found Arachnoskeleton 3010 | -10/Subcaves | Learned location of Zion (-6) 3010 | -10/Subcaves | Met a Zionite searching for "candidates" 3126 | -10/Subcaves | Core integrity fell below 20% 3132 | -10/Subcaves | Destroyed by EJ-9IL(R) with Subdweller Laser Last Messages --------------- emitted. Once familiar with the basic mechanics, press ESC then '3' to read the in-game manual for more details. 03010_ PI-A34(z): "Hey you! It's really dangerous down here, I feel that you could die at any moment. For your health and safety might I suggest a trip to Zion?" World map updated: -6/Zion. 03036_ System corrupted: Matter fused (-7). 03044_ Acquired derelict log, extracted data. World map confirmed: -6/Zion. 03082_ System corrupted: Component data lost. 03112_ System corrupted: Matter fused (-5). 03113_ Broken Sub. Power Source destroyed. 03117_ 3T-B3C(R) destroyed. 03126_ Subatomizers dissect the Disposable Heat Sink. 03127_ EJ-9IL(R) affixes Scrap Shield Fragment to Scrap Shield. Map ----- +----------------------------------------------------+ | ????????????????????????# #?????????????? | | ????????????????????????## ###?????????????? | | ????????????????????##??## #???????????????? | | ????????????????????# #?# ##???????????????? | | ????????????????????# ?## ##????????????????? | | ????????????????????# #### #?????????????????? | | ?????????????????????# ## ##?###?????????????? | | ??????????????????????# ##?? ##????????????? | | ??????????????????????# #?? #????????????? | | ??????????????????????## #?? #????????????? | | ???????????????????????## ### #????????????? | | ????????????????????????# #????????????? | | ????????????????????????# #????????????? | | ????????????????????????## ## #????????????? | | ?????????????????????????## ## #????????????? | | ??????????????????????????### #????????????? | | ??????????????????????????### #????????????? | | ?????????????????????????## ##????????????? | | ?????????????????????????# #?????????????? | | ???????????????????????### ##?????????????? | | ???????????????????????# ##?????????????? | | ???????????????????????# ##????????????? | | ???????????????????????# #????????????? | | ??????????????????????## [ #????????????? | | ?????????????????????## R%#### #????????????? | | ?????????????????????# @#??# #????????????? | | ?????????????????????# #??# #????????????? | | ?????????????????????# #??? ##????????????? | | ?????????????????????## ##??? ###?????????????? | | ??????????????????????####???? #???????????????? | | ?????????????????????????????? #???????????????? | | ?????????????????????????????? ???????????????? | | ?????????????????????????????? ???????????????? | | ?????????????????????????????? ??????????????? | | ??????????????????????????????? ?????????????????? | | ?????????????????????????????????????????????????? | | ?????????????????????????????????????????????????? | | ?????????????????????????????????????????????????? | | ?????????????????????????????????????????????????? | | ?????????????????????????????????????????????????? | | ?????????????????????????????????????????????????? | | ?????????????????????????????????????????????????? | | ?????????????????????????????????????????????????? | | ?????????????????????????????????????????????????? | | ?????????????????????????????????????????????????? | | ?????????????????????????????????????????????????? | | ?????????????????????????????????????????????????? | | ?????????????????????????????????????????????????? | | ?????????????????????????????????????????????????? | | ?????????????????????????????????????????????????? | +----------------------------------------------------+ Best States ------------- Heat Dissipation 25 Energy Generation 15 Energy Capacity 265 Matter Stores 300 Matter Capacity 300 Sight Range 16 Terrain Scan Density 10 Armor Coverage 100 Evasion (%) 41 Recoil Reduction 2 Item Schematics ----------------- None Robot Schematics ------------------ None Fabricated ------------ Nothing Repaired ---------- Nothing Studied --------- None Alien Tech Used ----------------- None Achievements -------------- Mistaken Identity Challenges ------------ None Game ------ Seed RecoilCloakingEngine Manual? 0 Play Time 00:32:38 Cumulative 32.4 hours Start 2026.09.06 @ 05:22:56 End 2026.09.06 @ 16:34:51 Sessions 2 Manual Loads 0 Difficulty Rogue Special Mode None Game No. 19 Rogue 19 Adventurer 0 Explorer 0 Win Type - Total 1 Types 1/0/0/0/0/0/0/0/0/0 Lore% 22 Gallery% 19 Achievement% 18 Wizard Run 0 Options --------- Layout 1 ASCII 0 Keyboard 1 Movement Numpad Keybinds 0 Fullscreen 1 Font 32/Tamsyn Map View 50x35 Zoom Use 0% Tactical HUD 1 Map Filters NONE Filters NONE Steam 1 RUN: c5e13813-90d6-4722-99d6-d592c6b885c3